fUSD/lending_fUSD_20260307
["ID","MTS","AMOUNT","RATE_DAILY","PERIOD"]
[407903733,1772903440900,-500.0,0.00017534,2]
[407903734,1772903440910,-1206.06835626,0.00017567,2]
[407903735,1772903440919,-3873.82369056,0.00017567,2]
[407903736,1772903440928,-500.0,0.00017589,2]
[407903737,1772903440937,-500.0,0.00017644,2]
[407903738,1772903440947,-500.0,0.00017698,2]
[407903739,1772903440956,-786.25501881,0.000177,2]
[407903740,1772903440967,-200.0,0.00017726,2]
[407903741,1772903440976,-500.0,0.00017726,2]
[407903742,1772903440986,-500.0,0.00017726,2]
[407903743,1772903440996,-500.0,0.00017726,2]
[407903744,1772903441006,-150.0,0.00017726,2]
[407903745,1772903441017,-150.0,0.00017726,2]
[407903746,1772903441026,-150.0,0.00017726,2]
[407903747,1772903441036,-150.0,0.00017726,2]
[407903748,1772903441045,-500.0,0.00017726,2]
[407903749,1772903441055,-500.0,0.00017726,2]
[407903750,1772903441064,-500.0,0.00017753,2]
[407903751,1772903441073,-500.0,0.00017781,2]
[407903752,1772903441083,-500.0,0.00017781,2]
[407903753,1772903441092,-500.0,0.00017781,2]
[407903754,1772903441101,-150.0,0.00017781,2]
[407903755,1772903441111,-150.0,0.00017781,2]
[407903756,1772903441120,-500.0,0.00017781,2]
[407903757,1772903441129,-500.0,0.00017781,2]
[407903758,1772903441139,-288.67580439,0.00017808,2]
[407903759,1772903441148,-500.0,0.00017836,2]
[407903760,1772903441158,-500.0,0.00017836,2]
[407903761,1772903441167,-500.0,0.00017836,2]
[407903762,1772903441177,-250.0,0.00017836,2]
[407903763,1772903441186,-150.0,0.00017836,2]
[407903764,1772903441196,-500.0,0.00017836,2]
[407903765,1772903441206,-500.0,0.00017836,2]
[407903766,1772903441215,-1006.67294339,0.0001786,2]
[407903767,1772903441225,-1228.28105708,0.0001789,2]
[407903768,1772903441234,-1076.3145123,0.0001789,2]
[407903769,1772903441244,-500.0,0.0001789,2]
[407903770,1772903441253,-500.0,0.0001789,2]
[407903771,1772903441263,-350.0,0.0001789,2]
[407903772,1772903441272,-158.0,0.0001789,2]
[407903773,1772903441281,-500.0,0.0001789,2]
[407903774,1772903441290,-500.0,0.0001789,2]
[407903775,1772903441299,-900.0,0.000179,6]
[407903776,1772903441308,-501.17686871,0.00017922,2]
[407903777,1772903441318,-288.8094344,0.00017945,2]
[407903778,1772903441327,-1600.0,0.00017959,2]
[407903779,1772903441338,-465.22146743,0.00018,2]
[407903780,1772903441349,-1206.06835626,0.00018033,2]
[407903781,1772903441359,-3873.82369056,0.00018033,2]
[407903782,1772903441369,-3000.0,0.00018082,7]
[407903783,1772903441378,-1100.0,0.00018082,7]
[407903784,1772903441389,-2700.0,0.00018082,7]
[407903785,1772903441399,-500.0,0.00018099,2]
[407903786,1772903441408,-500.0,0.00018154,2]
[407903787,1772903441418,-500.0,0.00018209,2]
[407903788,1772903441428,-250.22508461,0.0001825,2]
[407903789,1772903441438,-500.0,0.00018263,2]
[407903790,1772903441448,-500.0,0.00018318,2]
[407903791,1772903441457,-400.0,0.00018373,2]
[407903792,1772903441467,-788.88,0.00018373,2]
[407903793,1772903441476,-847.0,0.000184,2]
[407903794,1772903441486,-1206.06835626,0.000185,2]
[407903795,1772903441497,-3873.82369056,0.000185,2]
[407903796,1772903441506,-150.0,0.00018529,2]
[407903797,1772903441516,-1116.2,0.00018533,2]
[407903798,1772903441526,-5926.93,0.00018533,2]
[407903799,1772903441535,-150.99,0.00018533,2]
[407903800,1772903441544,-6048.39,0.00018533,2]
[407903801,1772903441554,-349.99,0.00018533,2]
[407903802,1772903441563,-6592.93,0.00018533,2]
[407903803,1772903441572,-9999.99,0.00018533,2]
[407903804,1772903441584,-999.99,0.00018533,2]
[407903805,1772903441593,-9999.99,0.00018533,2]
[407903806,1772903441603,-163.67805044,0.00018592,2]
[407903807,1772903441612,-693.3919763,0.00018625,2]
[407903808,1772903441623,-693.3919763,0.00018625,2]
[407903809,1772903441632,-174.61919141,0.00018625,2]
[407903810,1772903441641,-500.0,0.00018625,2]
[407903811,1772903441652,-500.0,0.00018625,2]
[407903812,1772903441662,-500.0,0.00018625,2]
[407903813,1772903441673,-300.19989737,0.00018625,2]
[407903814,1772903441682,-500.0,0.00018625,2]
[407903815,1772903441692,-500.0,0.00018625,2]
[407903816,1772903441702,-500.0,0.00018625,2]
[407903817,1772903441713,-500.0,0.00018625,2]
[407903818,1772903441722,-500.0,0.00018625,2]
[407903819,1772903441731,-500.0,0.00018625,2]
[407903820,1772903441740,-500.0,0.00018625,2]
[407903821,1772903441749,-500.0,0.00018625,2]
[407903822,1772903441759,-693.3919763,0.00018625,2]
[407903823,1772903441768,-500.0,0.00018625,2]
[407903824,1772903441777,-150.0,0.0001867,2]
[407903825,1772903441786,-150.0,0.0001867,2]
[407903826,1772903441795,-179.48565848,0.0001867,2]
[407903827,1772903441805,-164.64776858,0.0001867,2]
[407903828,1772903441814,-180.0,0.0001867,2]
[407903829,1772903441824,-250.0,0.0001867,2]
[407903830,1772903441833,-150.0,0.0001867,2]
[407903831,1772903441843,-150.0,0.0001867,2]
[407903832,1772903441852,-150.0,0.0001867,2]
[407903833,1772903441862,-719.04747942,0.0001868,2]
[407903834,1772903441871,-425.87434013,0.0001872,2]
[407903835,1772903441881,-938.08263821,0.0001872,2]
[407903836,1772903441891,-1483.42040625,0.0001872,2]
[407903837,1772903441900,-150.0,0.00018725,2]
[407903838,1772903441909,-150.0,0.00018725,2]
[407903839,1772903441919,-200.0,0.00018725,2]
[407903840,1772903441928,-745.65223616,0.00018735,2]
[407903841,1772903441938,-500.0,0.00018767,2]
[407903842,1772903441948,-150.0,0.0001878,2]
[407903843,1772903441958,-150.0,0.0001878,2]
[407903844,1772903441967,-773.2413689,0.0001879,2]
[407903845,1772903441979,-150.0,0.00018834,2]
[407903846,1772903441988,-150.0,0.00018834,2]
[407903847,1772903441998,-801.85129955,0.00018845,2]
[407903848,1772903442008,-250.0,0.00018889,2]
[407903849,1772903442019,-250.0,0.00018889,2]
[407903850,1772903442028,-831.51979763,0.000189,2]
[407903851,1772903442037,-500.0,0.00018943,2]
[407903852,1772903442047,-500.0,0.00018943,2]
[407903853,1772903442056,-164.86,0.00018944,2]
[407903854,1772903442067,-862.28603014,0.00018955,2]
[407903855,1772903442076,-1206.06835626,0.00018967,2]
[407903856,1772903442086,-3873.82369056,0.00018967,2]
[407903857,1772903442095,-1000.0,0.00019,2]
[407903858,1772903442104,-4610.79837758,0.00019,2]
[407903859,1772903442114,-2567.11739689,0.00019,2]
[407903860,1772903442124,-350.0,0.00019,2]
[407903861,1772903442133,-894.19061326,0.0001901,2]
[407903862,1772903442142,-927.27566595,0.00019065,2]
[407903863,1772903442152,-1226.94360778,0.000191,2]
[407903864,1772903442162,-1800.0,0.000191,6]
[407903865,1772903442171,-961.58486559,0.0001912,2]
[407903866,1772903442181,-151.0,0.00019149,2]
[407903867,1772903442191,-3946.62,0.00019152,2]
[407903868,1772903442201,-882.83,0.00019152,2]
[407903869,1772903442211,-827.50680267,0.00019173,2]
[407903870,1772903442220,-181.08010149,0.00019173,2]
[407903871,1772903442230,-500.0,0.00019173,2]
[407903872,1772903442239,-997.16350561,0.00019175,2]
[407903873,1772903442249,-3000.0,0.00019178,7]
[407903874,1772903442258,-1100.0,0.00019178,7]
[407903875,1772903442269,-2700.0,0.00019178,7]
[407903876,1772903442278,-2700.0,0.000192,7]
[407903877,1772903442288,-2460.0,0.00019258,2]
[407903878,1772903442297,-5991.0,0.00019258,2]
[407903879,1772903442307,-414.0,0.0001929,2]
[407903880,1772903442316,-1118.6368414,0.000193,2]
[407903881,1772903442326,-3600.0,0.000193,7]
[407903882,1772903442335,-532.61390214,0.00019315,2]
[407903883,1772903442345,-4500.0,0.000194,7]
[407903884,1772903442354,-1206.06835626,0.00019433,2]
[407903885,1772903442363,-3873.82369056,0.00019433,2]
[407903886,1772903442373,-168.0,0.00019452,2]
[407903887,1772903442383,-300.0,0.00019486,2]
[407903888,1772903442392,-300.0,0.000195,2]
[407903889,1772903442403,-900.0,0.000195,7]
[407903890,1772903442413,-619.0,0.00019589,2]
[407903891,1772903442422,-3503.0,0.00019589,2]
[407903892,1772903442431,-1341.0,0.00019589,2]
[407903893,1772903442441,-1050.694,0.00019589,2]
[407903894,1772903442451,-150.0,0.00019589,2]
[407903895,1772903442460,-1279.0,0.00019589,2]
[407903896,1772903442469,-1212.0,0.00019589,2]
[407903897,1772903442479,-922.0,0.00019589,2]
[407903898,1772903442488,-2899.76911409,0.000196,2]
[407903899,1772903442497,-900.0,0.000196,7]
[407903900,1772903442507,-5000.0,0.00019608,2]
[407903901,1772903442516,-2804.0,0.0001968,2]
[407903902,1772903442526,-900.0,0.000197,7]
[407903903,1772903442535,-221.04967534,0.00019721,2]
[407903904,1772903442544,-500.0,0.00019721,2]
[407903905,1772903442554,-1106.41192988,0.00019722,2]
[407903906,1772903442565,-500.0,0.00019726,2]
[407903907,1772903442574,-500.0,0.00019726,2]
[407903908,1772903442588,-500.0,0.00019726,2]
[407903909,1772903442597,-1386.27,0.00019729,14]
[407903910,1772903442607,-268.8,0.00019729,14]
[407903911,1772903442616,-1000.0,0.00019731,2]
[407903912,1772903442626,-1000.0,0.00019735,2]
[407903914,1772903442636,-1000.0,0.0001974,2]
[407903916,1772903442645,-1000.0,0.00019745,2]
[407903917,1772903442655,-150.0,0.00019746,2]
[407903919,1772903442666,-1121.76057417,0.00019765,2]
[407903920,1772903442675,-1000.0,0.00019767,2]
[407903921,1772903442685,-3415.6,0.00019769,2]
[407903923,1772903442695,-3415.6,0.00019769,2]
[407903924,1772903442704,-3415.6,0.00019769,2]
[407903925,1772903442714,-3415.6,0.00019769,2]
[407903927,1772903442723,-3415.6,0.00019769,2]
[407903929,1772903442733,-3415.6,0.00019769,2]
[407903931,1772903442743,-3415.6,0.00019769,2]
[407903932,1772903442754,-6457.12,0.00019769,2]
[407903933,1772903442765,-1000.0,0.00019773,2]
[407903934,1772903442776,-1000.0,0.00019774,2]
[407903935,1772903442786,-1000.0,0.0001978,2]
[407903936,1772903442795,-500.0,0.00019781,2]
[407903937,1772903442804,-500.0,0.00019781,2]
[407903938,1772903442814,-500.0,0.00019781,2]
[407903939,1772903442823,-1000.0,0.00019787,2]
[407903940,1772903442832,-1000.0,0.00019793,2]
[407903941,1772903442843,-1295.19930183,0.00019799,5]
[407903942,1772903442854,-1000.0,0.000198,2]
[407903943,1772903442863,-700.80424,0.000198,2]
[407903944,1772903442872,-700.80425,0.000198,2]
[407903945,1772903442882,-900.0,0.000198,7]
[407903946,1772903442891,-462.11662917,0.000198,2]
[407903947,1772903442900,-195.48930286,0.00019804,2]
[407903948,1772903442909,-1000.0,0.0001981,2]
[407903949,1772903442918,-462.11662912,0.00019817,2]
[407903950,1772903442927,-1000.0,0.00019817,2]
[407903951,1772903442936,-150.0,0.00019825,2]
[407903952,1772903442945,-1000.0,0.00019826,2]
[407903953,1772903442954,-462.11662912,0.00019833,2]
[407903954,1772903442963,-1000.0,0.00019834,2]
[407903955,1772903442972,-150.0,0.00019835,2]
[407903956,1772903442981,-500.0,0.00019836,2]
[407903957,1772903442991,-500.0,0.00019836,2]
[407903958,1772903442999,-175.29398025,0.00019836,2]
[407903959,1772903443008,-200.0,0.0001984,2]
[407903960,1772903443017,-1000.0,0.0001984,2]
[407903961,1772903443027,-1000.0,0.00019847,2]
[407903962,1772903443036,-501.79867884,0.0001985,2]
[407903963,1772903443046,-462.11662912,0.0001985,2]
[407903964,1772903443055,-462.11662912,0.00019867,2]
[407903965,1772903443064,-1000.0,0.00019867,2]
[407903966,1772903443073,-184.53,0.00019867,2]
[407903967,1772903443083,-1000.0,0.00019869,2]
[407903968,1772903443096,-164.34884721,0.00019873,2]
[407903969,1772903443107,-501.79867883,0.00019875,2]
[407903970,1772903443116,-150.0,0.00019878,2]
[407903971,1772903443125,-462.11662912,0.00019883,2]
[407903972,1772903443135,-500.0,0.0001989,2]
[407903973,1772903443144,-350.0,0.0001989,2]
[407903974,1772903443153,-168.0,0.00019891,2]
[407903975,1772903443162,-25000.0,0.00019891,3]
[407903976,1772903443172,-462.81782728,0.00019891,2]
[407903977,1772903443181,-2877.42789453,0.00019892,2]
[407903978,1772903443191,-2877.42789451,0.00019894,2]
[407903979,1772903443200,-2877.42789451,0.00019895,2]
[407903980,1772903443209,-2877.42789451,0.00019897,2]
[407903981,1772903443218,-2877.42789451,0.00019898,2]
[407903982,1772903443227,-500.0,0.00019899,2]
[407903983,1772903443237,-500.0,0.00019899,2]
[407903984,1772903443246,-1000.0,0.00019899,2]
[407903985,1772903443255,-10000.0,0.000199,2]
[407903986,1772903443265,-25000.0,0.000199,3]
[407903987,1772903443274,-5800.0,0.000199,2]
[407903988,1772903443283,-9783.35772538,0.000199,3]
[407903989,1772903443293,-501.79867883,0.000199,2]
[407903990,1772903443302,-1118.6368414,0.000199,2]
[407903991,1772903443311,-1055.0,0.000199,7]
[407903992,1772903443320,-2877.42789451,0.000199,2]
[407903993,1772903443329,-1206.06835626,0.000199,2]
[407903994,1772903443338,-310.77887769,0.000199,2]
[407903995,1772903443347,-462.11662912,0.000199,2]
[407903996,1772903443356,-3873.82369056,0.000199,2]
[407903997,1772903443366,-222.52962526,0.000199,3]
[407903998,1772903443375,-3771.0,0.000199,2]
[407903999,1772903443384,-46999.96014233,0.000199,2]
[407904000,1772903443394,-1000.0,0.00019905,2]
[407904003,1772903443669,-1000.0,0.0001991,2]
[407904004,1772903443695,-1000.0,0.00019913,2]
[407904005,1772903443706,-1106.41192988,0.00019919,2]
[407904006,1772903443716,-1000.0,0.00019921,2]
[407904007,1772903443726,-1000.0,0.00019921,2]
[407904008,1772903443735,-500.0,0.00019933,2]
[407904009,1772903443744,-1000.0,0.00019933,2]
[407904010,1772903443754,-339.79969778,0.0001994,2]
[407904011,1772903443763,-159.23897655,0.00019944,2]
[407904012,1772903443772,-1000.0,0.00019945,2]
[407904013,1772903443782,-500.0,0.00019945,2]
[407904014,1772903443796,-4050.80730485,0.00019945,2]
[407904015,1772903443806,-1000.0,0.00019946,2]
[407904016,1772903443815,-151.0,0.00019947,2]
[407904017,1772903443825,-356.16868786,0.00019949,2]
[407904018,1772903443835,-300126.52033476,0.0001995,15]
[407904019,1772903443844,-168.0,0.00019951,2]
[407904020,1772903443853,-1600.0,0.00019954,2]
[407904021,1772903443864,-156.1,0.00019956,2]
[407904022,1772903443873,-680.76421036,0.00019961,2]
[407904023,1772903443883,-1000.0,0.00019969,2]
[407904024,1772903443893,-400.0,0.0001997,2]
[407904025,1772903443902,-400.0,0.0001997,2]
[407904026,1772903443912,-541.01514806,0.0001997,2]
[407904027,1772903443921,-150.0,0.00019973,2]
[407904028,1772903443931,-151.45333064,0.0001998,2]
[407904029,1772903443940,-168.0,0.00019985,2]
[407904030,1772903443950,-151.0,0.00019989,2]
[407904031,1772903443959,-339.79969778,0.0001999,2]
[407904032,1772903443968,-339.79969778,0.0001999,2]
[407904033,1772903443978,-422.5802129,0.00019991,2]
[407904034,1772903443987,-500.0,0.00019991,2]
[407904035,1772903444001,-500.0,0.00019991,2]
[407904036,1772903444012,-4714.0,0.00019992,2]
[407904037,1772903444022,-416985.840687,0.00019992,2]
[407904038,1772903444032,-16121.6109302,0.00019992,2]
[407904039,1772903444042,-1243.3053404,0.00019992,2]
[407904040,1772903444052,-2037.6256003,0.00019992,2]
[407904041,1772903444063,-151.0,0.00019992,2]
[407904042,1772903444072,-23516.1665609,0.00019992,2]
[407904043,1772903444082,-453.388839,0.00019992,2]
[407904044,1772903444092,-453.388839,0.00019992,2]
[407904045,1772903444102,-453.388839,0.00019992,2]
[407904046,1772903444112,-453.388839,0.00019992,2]
[407904047,1772903444122,-73391.0747572,0.00019992,2]
[407904048,1772903444132,-151.0,0.00019992,2]
[407904049,1772903444141,-3428.5234029,0.00019992,2]
[407904050,1772903444151,-151.0,0.00019992,2]
[407904051,1772903444162,-151.0,0.00019992,2]
[407904052,1772903444172,-151.0,0.00019992,2]
[407904053,1772903444181,-151.0,0.00019992,2]
[407904054,1772903444191,-151.0,0.00019992,2]
[407904055,1772903444204,-151.0,0.00019992,2]
[407904056,1772903444216,-151.0,0.00019992,2]
[407904057,1772903444233,-151.0,0.00019992,2]
[407904058,1772903444242,-199.366183,0.00019992,2]
[407904059,1772903444252,-16608.1466182,0.00019995,2]
[407904060,1772903444262,-151.0,0.00019997,2]
[407904061,1772903444272,-412.00988586,0.00019999,2]
[407904062,1772903444283,-300.0,0.00019999,2]
[407904063,1772903444293,-666.0,0.00019999,2]
[407904064,1772903444302,-155.0,0.00019999,2]
[407904065,1772903444312,-500.0,0.00019999,2]
[407904066,1772903444322,-500.0,0.00019999,2]
[407904067,1772903444331,-500.0,0.00019999,2]
[407904068,1772903444341,-500.0,0.00019999,2]
[407904069,1772903444352,-513.528378,0.00019999,2]
[407904070,1772903444361,-177.28481416,0.00019999,2]
[407904071,1772903444371,-196.03443072,0.00019999,2]
[407904072,1772903444381,-287.08423227,0.00019999,2]
[407904073,1772903444394,-500.0,0.00019999,2]
[407904074,1772903444404,-362.36102,0.00019999,2]
[407904075,1772903444414,-500.0,0.00019999,2]
[407904076,1772903444425,-389.29868488,0.00019999,2]
[407904077,1772903444435,-500.0,0.00019999,2]
[407904078,1772903444444,-225.29217206,0.00019999,2]
[407904079,1772903444454,-500.0,0.0002,2]
[407904080,1772903444463,-465888.01343385,0.0002,2]
[407904081,1772903445313,-506.00851436,0.0002,2]
[407904082,1772903445325,-507.04547635,0.0002,2]
[407904083,1772903445340,-400.0,0.0002,2]
[407904084,1772903445355,-253991.40470883,0.0002,2]
[407904085,1772903445366,-57264.5980398,0.0002,2]
[407904088,1772903445608,-165.45,0.00019992,2]
[407904089,1772903445619,-4792.8566,0.0002,2]
[407904093,1772903509782,564.65,8.95e-05,2]
[407904094,1772903509992,564.65,9.421e-05,2]
[407904095,1772903510877,564.65,9.892e-05,2]
[407904096,1772903511255,564.65,0.00010363,2]
[407904097,1772903511299,564.65,0.00010834,2]
[407904098,1772903511329,564.65,0.00011305,2]
[407904101,1772903568679,202.0,0.00028395,120]
[407904119,1772903920869,249.0,0.00019268,30]
[407904122,1772903955373,226.0,0.00019219,30]
[407904128,1772903983320,-321.0,0.00011776,2]
[407904200,1772904328823,10000.0,0.00031,120]
[407904201,1772904338922,10000.0,0.00031,120]
[407904202,1772904352477,10000.0,0.00031,120]
[407904203,1772904363424,10000.0,0.00031,120]
[407904204,1772904371099,10000.0,0.00031,120]
[407904205,1772904379528,10000.0,0.00031,120]
[407904206,1772904387088,10000.0,0.00031,120]
[407904207,1772904394823,10000.0,0.00031,120]
[407904208,1772904404007,10000.0,0.00031,120]
[407904209,1772904411186,10000.0,0.00031,120]
[407904210,1772904418127,-200.95847447,0.00011776,2]
[407904211,1772904422142,10000.0,0.00031,120]
[407904212,1772904435271,10000.0,0.00031,120]
[407904213,1772904446536,10000.0,0.00031,120]
[407904215,1772904459360,5026.07,0.00031,120]
[407904216,1772904473062,5026.06,0.00031,120]
[407904227,1772904516451,-42.69152553,0.00011776,2]
[407904229,1772904516474,-250.0,0.00012012,2]
[407904230,1772904516496,-564.65,0.00012248,2]
[407904231,1772904516518,-300.0,0.00012384,2]
[407904232,1772904516539,-250.0,0.00012411,2]
[407904233,1772904516561,-564.65,0.00012719,2]
[407904234,1772904516581,-28.00847447,0.00012954,2]
[407904235,1772904518431,-271.99152553,0.00012954,2]
[407904236,1772904518453,-250.0,0.00012954,2]
[407904237,1772904518475,-564.65,0.0001319,2]
[407904238,1772904518497,-564.65,0.00013661,2]
[407904239,1772904518519,-348.70847447,0.00014132,2]
[407904240,1772904518905,-215.94152553,0.00014132,2]
[407904241,1772904518930,-252.0,0.0001437,2]
[407904242,1772904518953,-166.66,0.0001437,2]
[407904243,1772904518975,-1365.39847447,0.00014371,2]
[407904244,1772904519235,-2000.0,0.00014371,2]
[407904245,1772904519555,-1935.87152553,0.00014371,2]
[407904246,1772904519577,-64.12847447,0.00014509,2]
[407904247,1772904519882,-1555.23152553,0.00014509,2]
[407904248,1772904519906,-444.76847447,0.00014589,2]
[407904249,1772904520455,-55.23152553,0.00014589,2]
[407904250,1772904520481,-564.65,0.00014603,2]
[407904251,1772904520504,-166.66,0.00014673,2]
[407904252,1772904520527,-166.66,0.00014976,2]
[407904313,1772904631799,-561.36,0.00015074,2]
[407904314,1772904631812,-3.29,0.00015074,2]
[407904315,1772904631822,-321.4328,0.00015146,2]
[407904316,1772904631832,-300.0,0.00015159,2]
[407904317,1772904631844,-250.0,0.00015205,2]
[407904318,1772904631854,-250.0,0.00015233,2]
[407904319,1772904631865,-300.0,0.00015245,2]
[407904320,1772904631874,-1200.0,0.00015245,2]
[407904321,1772904631885,-1169.88837166,0.00015246,2]
[407904322,1772904631898,-1115.33881024,0.00015246,2]
[407904323,1772904631910,-437.436765,0.00015246,2]
[407904324,1772904631923,-1068.98181167,0.00015246,2]
[407904325,1772904631934,-612.42885743,0.00015246,2]
[407904326,1772904631962,-700.05,0.00015246,2]
[407904327,1772904631974,-9163.115384,0.00015246,2]
[407904328,1772904631984,-166.66,0.00015278,2]
[407904329,1772904631993,-250.0,0.00015342,2]
[407904330,1772904632003,-564.65,0.00015545,2]
[407904331,1772904632013,-166.66,0.00015581,2]
[407904333,1772904632023,-5587.2413,0.000156,2]
[407904335,1772904632033,-2500.0,0.000156,2]
[407904337,1772904632043,-714.48,0.00015618,2]
[407904339,1772904632059,-241.21367127,0.00015653,2]
[407904340,1772904632068,-500.0,0.00015699,2]
[407904341,1772904632078,-500.0,0.00015699,2]
[407904343,1772904632087,-500.0,0.00015699,2]
[407904345,1772904632098,-500.0,0.00015699,2]
[407904347,1772904632108,-500.0,0.00015699,2]
[407904349,1772904632117,-500.0,0.00015699,2]
[407904350,1772904632129,-500.0,0.00015699,2]
[407904351,1772904632139,-500.0,0.00015699,2]
[407904352,1772904632148,-500.0,0.00015699,2]
[407904353,1772904632157,-500.0,0.00015699,2]
[407904354,1772904632166,-551.06669699,0.00015699,2]
[407904355,1772904632175,-500.0,0.00015699,2]
[407904357,1772904632184,-500.0,0.00015699,2]
[407904358,1772904632194,-500.0,0.00015699,2]
[407904359,1772904632204,-500.0,0.00015699,2]
[407904360,1772904632213,-500.0,0.00015699,2]
[407904361,1772904632223,-500.0,0.00015699,2]
[407904362,1772904632232,-500.0,0.00015699,2]
[407904363,1772904632241,-500.0,0.00015699,2]
[407904364,1772904632250,-500.0,0.00015699,2]
[407904365,1772904632260,-500.0,0.00015699,2]
[407904366,1772904632269,-500.0,0.00015699,2]
[407904367,1772904632279,-500.0,0.00015699,2]
[407904368,1772904632288,-500.0,0.00015699,2]
[407904369,1772904632298,-500.0,0.00015699,2]
[407904370,1772904632307,-500.0,0.00015699,2]
[407904371,1772904632317,-500.0,0.00015699,2]
[407904372,1772904632327,-500.0,0.00015699,2]
[407904373,1772904632336,-500.0,0.00015699,2]
[407904374,1772904632346,-500.0,0.00015699,2]
[407904375,1772904632355,-500.0,0.00015699,2]
[407904376,1772904632366,-500.0,0.00015699,2]
[407904377,1772904632375,-500.0,0.00015699,2]
[407904378,1772904632385,-500.0,0.00015699,2]
[407904379,1772904632395,-500.0,0.00015699,2]
[407904380,1772904632404,-500.0,0.00015699,2]
[407904381,1772904632414,-43586.72466362,0.000157,2]
[407904394,1772904637898,-873.31626782,0.000157,2]
[407904395,1772904637952,-1020.29583807,0.000157,2]
[407904396,1772904638006,-285.17265244,0.000157,2]
[407904397,1772904638023,-52304.20487805,0.000157,2]
[407904398,1772904638032,-3148.73,0.00015753,2]
[407904399,1772904638041,-500.0,0.00015799,2]
[407904400,1772904638056,-500.0,0.00015799,2]
[407904401,1772904638067,-500.0,0.00015799,2]
[407904402,1772904638077,-501.72405311,0.00015799,2]
[407904403,1772904638088,-500.0,0.00015799,2]
[407904404,1772904638099,-500.0,0.00015799,2]
[407904405,1772904638109,-500.0,0.00015799,2]
[407904406,1772904638121,-500.0,0.00015799,2]
[407904407,1772904638131,-500.0,0.00015799,2]
[407904408,1772904638140,-500.0,0.00015799,2]
[407904409,1772904638150,-500.0,0.00015799,2]
[407904410,1772904638160,-500.0,0.00015799,2]
[407904411,1772904638170,-500.0,0.00015799,2]
[407904412,1772904638180,-500.0,0.00015799,2]
[407904413,1772904638191,-3240.0,0.00015841,2]
[407904414,1772904638201,-166.66,0.00015883,2]
[407904415,1772904638210,-150.29651913,0.000159,2]
[407904416,1772904638219,-564.65,0.00016016,2]
[407904417,1772904638230,-1025.47744113,0.00016089,2]
[407904419,1772904638257,-0.47188662,0.00016089,2]
[407904420,1772904638280,-347.32,0.00016089,2]
[407904421,1772904638297,-479.15067225,0.00016089,2]
[407904422,1772904638307,-241.21367125,0.00016125,2]
[407904423,1772904638317,-564.65,0.00016487,2]
[407904424,1772904638326,-3148.73,0.00016541,2]
[407904425,1772904638336,-300.0,0.00016581,2]
[407904426,1772904638347,-241.21367125,0.00016597,2]
[407904427,1772904638356,-200.0,0.00016621,2]
[407904428,1772904638367,-287.0,0.00016681,2]
[407904429,1772904638376,-1680.0,0.00016765,2]
[407904430,1772904638386,-564.65,0.00016958,2]
[407904431,1772904638395,-241.21367125,0.00017069,2]
[407904432,1772904638404,-500.0,0.00017328,2]
[407904433,1772904638414,-500.0,0.00017328,2]
[407904434,1772904638423,-3148.73,0.00017329,2]
[407904435,1772904638433,-564.65,0.00017429,2]
[407904436,1772904638443,-241.21367125,0.00017541,2]
[407904437,1772904638453,-295.83,0.00017564,2]